[Event "Asian Amateur-ch Open 2022"]
[Site "Muscat"]
[Date "2022.10.05"]
[Round "9.13"]
[White "Al Zadjali, Abdul Rahman"]
[Black "Salim Mohammed, Salim Al Amri"]
[Result "0-1"]
[ECO "E81"]
[WhiteElo "1534"]
[BlackElo "1952"]
[Annotator "TA"]
[PlyCount "118"]
[EventDate "2022.09.29"]
[EventType "swiss"]
[EventCountry "OMN"]
[SourceTitle "playchess.com"]
[Source "ChessBase"]
[SourceQuality "1"]
[TimeControl "5400+30"]

{[%evp 15,118,60,69,66,97,78,86,72,85,63,58,70,85,62,81,67,70,21,15,15,27,14,20,-41,86,-17,0,-26,0,0,93,94,101,58,77,59,132,116,92,38,48,0,0,-54,-61,-125,-114,-291,-276,-256,-225,-184,0,0,0,0,0,0,0,-81,-58,-136,-133,-334,0,0,0,-365,-356,-339,-250,-349,-331,-480,-464,-1161,-255,-250,0,-822,-511,-455,-97,-95,-8,-8,-8,-8,-8,-8,-8,-8,0,-131,-131,-131,-131,-226,-201,-160,-135,-443,-442,-29991,-29992]} 1. d4 {[%emt 0:00:03]} Nf6 {[%emt 0:06:04]} 2. c4 {[%emt 0:00:14]} g6 {[%emt 0:00:39]} 3. Nc3 {[%emt 0:00:05]} Bg7 {[%emt 0:00:18]} 4. e4 {[%emt 0:00:15]} d6 {[%emt 0:00:09]} 5. Nge2 {[%emt 0:00:40]} Nbd7 {[%emt 0:00:25]} 6. f3 {[%emt 0:00:20]} e5 {[%emt 0:00:09]} 7. Bg5 {[%emt 0:00:10]} h6 {[%emt 0:00:11]} 8. Be3 {[%emt 0:00:04]} O-O {[%emt 0:00:13]} 9. Qd2 {[%emt 0:01:03] E81: King's Indian: Sämisch: 6th move deviations (including 6 Be3 c6).} Kh7 {[%emt 0:00:04]} 10. d5 {[%emt 0:01:09]} Nb6 {[%emt 0:01:24]} 11. Nc1 {[%emt 0:03:41] White is better.} c6 {[%emt 0:00:10] [#]} 12. Be2 $146 {[%emt 0:00:27]} ({Predecessor:} 12. Bd3 cxd5 13. cxd5 Bd7 14. a4 Nc8 15. Bb5 a6 16. Bxd7 Nxd7 17. O-O Ne7 18. Nd3 {1-0 (49) Garcia,P (2305)-Gonzalez,G (2215) Gran Canaria 1989}) 12... cxd5 {[%emt 0:00:05]} 13. cxd5 {[%emt 0:00:20]} Bd7 {[%emt 0:00:14]} 14. O-O {[%emt 0:01:04]} Rc8 {[%emt 0:00:02]} 15. b3 {[%emt 0:01:41]} Nh5 {[%emt 0:00:30][%cal Oh5f4]} 16. Nb5 {[%emt 0:01:12]} (16. a4 $14) 16... Bxb5 $11 {[%emt 0:00:35]} 17. Bxb5 {[%emt 0:00:01]} Nf4 {[%emt 0:00:58]} 18. a4 {[%emt 0:02:01]} a6 {[%emt 0:00:27]} 19. Bd3 {[%emt 0:01:13] [#]} (19. Be2 $11) 19... Nd7 {[%emt 0:00:14]} (19... Nfxd5 $1 $15 {stays ahead.} 20. exd5 e4 21. Bxa6 (21. Bxe4 Bxa1 22. Qb4 Nd7 $17) 21... bxa6) 20. b4 {[%emt 0:01:38]} ({White should play} 20. Bb1 $1 $16) 20... f5 {[%emt 0:02:03]} 21. Nb3 {[%emt 0:03:36]} Nxd3 {[%emt 0:01:40]} (21... fxe4 {is interesting.} 22. Bxe4 Rc3 23. Rab1 Qg5) 22. Qxd3 {[%emt 0:00:03]} f4 {[%emt 0:00:09]} (22... fxe4 $11 23. fxe4 Rc7) 23. Bf2 $16 {[%emt 0:00:56]} g5 {[%emt 0:00:06]} 24. Na5 {[%emt 0:01:58]} Qc7 {[%emt 0:00:36]} 25. Qd2 {[%emt 0:02:01]} h5 {[%emt 0:01:15]} (25... Nf6 $14) 26. Rfc1 {[%emt 0:08:25]} Qb8 {[%emt 0:00:02]} 27. h3 {[%emt 0:00:06]} (27. Rcb1 $16) 27... g4 $14 {[%emt 0:00:31]} 28. Bh4 {[%emt 0:13:33]} (28. fxg4 $14 hxg4 29. hxg4) 28... Bf6 {[%emt 0:01:32]} 29. Rxc8 {[%emt 0:03:22]} (29. Be1 $11) 29... Rxc8 $15 {[%emt 0:00:07]} 30. Bxf6 {[%emt 0:00:22]} (30. Bf2 $15) 30... Nxf6 $17 {[%emt 0:00:04]} 31. Rc1 $2 {[%emt 0:01:19]} (31. Kh2 $17 {was worth a try.}) 31... Qa7+ $19 {[%emt 0:00:11]} 32. Kf1 {[%emt 0:05:22] [#]} gxh3 $1 {[%emt 0:00:29]} 33. gxh3 {[%emt 0:00:58]} (33. Rxc8 $2 h2 34. Qf2 h1=Q+ $19) 33... Qd4 $2 $40 {[%emt 0:05:55][%mdl 128] Black has some attack.} (33... Rg8 $1 $19 {( -> ...Qg1+)} 34. Qf2 b6) 34. Ke2 $1 $11 {[%emt 0:04:16]} (34. Rd1 Qb6 35. Kg2 Rg8+ 36. Kh1 Rg3 $19) 34... Rxc1 {[%emt 0:02:16]} 35. Qxc1 {[%emt 0:00:05][%mdl 4096] Endgame KQN-KQN} Qb6 {[%emt 0:00:41]} 36. Qc3 {[%emt 0:01:21]} h4 {[%emt 0:01:22]} 37. Nc4 {[%emt 0:06:21]} (37. Kf1 $11) 37... Qc7 $1 $17 {[%emt 0:00:29]} (37... Qg1 $6 38. Nxd6 Qg2+ 39. Kd1 Qf1+ 40. Kc2 Qxh3 41. Qxe5 (41. Nxb7 $2 Qg2+ 42. Kb3 h3 $19) 41... Qg2+ 42. Kc1 Qh1+ 43. Kd2 Qg2+ 44. Ke1 (44. Kc1 Qh1+ 45. Kd2 Qg2+ 46. Ke1 Qg1+ 47. Kd2 Qg2+ $11) 44... Qg1+ 45. Kd2 Qg2+ 46. Ke1 (46. Kc1 Qh1+ 47. Kd2 Qg2+ $11) 46... Qg1+ 47. Kd2 Qg2+ $11) 38. Kd3 {[%emt 0:00:17]} (38. b5 $1 $15) 38... Qd7 $1 {[%emt 0:00:04][%csl LRa4,LRh3]} 39. Kd2 $2 {[%emt 0:04:45]} (39. Nxe5 $17 {was called for.} dxe5 40. Qxe5) 39... b5 $2 {[%emt 0:00:42]} ({Inferior is} 39... Qxh3 40. Nxd6 Nd7 41. Qc7 $11 (41. Qd3 $2 Qg2+ 42. Ke1 h3 $19)) ({Better is} 39... Kg6 $1 $19 40. Qxe5 dxe5 41. Nxe5+ Kg5 42. Nxd7 Nxd7) 40. axb5 $11 {[%emt 0:00:54]} axb5 {[%emt 0:00:03]} 41. Nxe5 {[%emt 0:03:37][%mdl 8192]} dxe5 $19 {[%emt 0:04:05]} 42. Qxe5 {[%emt 0:00:05]} Kg6 {[%emt 0:00:13]} 43. Qxf4 {[%emt 0:00:18]} Qxh3 {[%emt 0:00:22] White must now prevent ...Qg2+.} 44. d6 {[%emt 0:02:21]} (44. e5 $142 Nh5 45. Qe4+ Qf5 46. Qxh4 Qxe5 47. Qg4+ Kf6 48. Qh4+ Kf7 49. Qg4) 44... Qg2+ $1 {[%emt 0:00:47]} ({Don't go for} 44... Qe6 $2 45. Ke1 $19) 45. Kd3 {[%emt 0:00:17]} (45. Ke3 $142 Qg5 46. Qxg5+ Kxg5 47. Kf2) 45... Qf1+ $2 {[%emt 0:04:13]} (45... Qg5 46. Qh2 Nd7) 46. Kd2 {[%emt 0:01:22]} Qg2+ $2 {[%emt 0:05:40]} (46... Qf2+ 47. Kd1 Qd4+ 48. Ke2 Kf7) 47. Kd3 $1 {[%emt 0:00:21]} Qg5 $1 {[%emt 0:02:05]} 48. Qh2 {[%emt 0:04:28]} Qc1 $2 {[%emt 0:03:38]} (48... Qg3 $19 {is more deadly.} 49. Qxg3+ hxg3) 49. Qxh4 $17 {[%emt 0:04:48]} Qc4+ {[%emt 0:00:40]} (49... Qd1+ $1 $17 50. Kc3 Qxd6) 50. Ke3 $11 {[%emt 0:01:18]} Qxb4 {[%emt 0:07:03] Chess con chili.} 51. Qg3+ {[%emt 0:02:10]} Kf7 {[%emt 0:02:53] Hoping for ...Qc3+.} 52. Qe5 {[%emt 0:00:22] Inhibits Qc3+.} Qe1+ {[%emt 0:00:46]} 53. Kf4 {[%emt 0:00:18] And now Kf5 would win.} Qe2 {[%emt 0:07:04]} 54. Qd4 {[%emt 0:06:54]} (54. Qe7+ $11 Kg6 55. Qe6) 54... Qh2+ $17 {[%emt 0:01:45]} 55. Ke3 {[%emt 0:01:28] [#]} Ke6 $1 {[%emt 0:02:07]} 56. Qb4 {[%emt 0:01:08] [#]} (56. Qd3 $17 {was necessary.}) 56... Qe5 $1 $19 {[%emt 0:01:00]} ({Stronger than} 56... Qxd6 57. Qxb5 Qg3 58. Qc4+ Ke7 59. e5 Qxe5+ 60. Kd2 $15) 57. Qd4 {[%emt 0:08:43] Against Nd5+} Qg3 {[%emt 0:03:45]} 58. Qd1 $2 {[%emt 0:01:38][%mdl 8192]} (58. d7 $17 {is a better chance.} Qe1+ 59. Kd3 Qd1+ 60. Kc3 Qa1+ 61. Kd3 Qb1+ 62. Kc3 Nxd7 63. f4) 58... Ng4+ {[%emt 0:01:24]} 59. Ke2 {[%emt 0:00:07]} (59. Kd2 $19 Qxd6+ 60. Ke1 Qg3+ 61. Kd2) 59... Qh2+ {[%emt 0:00:53] Weighted Error Value: White=0.70/Black=0.48} 0-1

[Event "Asian Amateur-ch Open 2022"]
[Site "Muscat"]
[Date "2022.10.05"]
[Round "9.14"]
[White "Shamas Salim Ahmed"]
[Black "Sharaf, Khaleel"]
[Result "0-1"]
[ECO "D02"]
[WhiteElo "1663"]
[BlackElo "1874"]
[Annotator "NA RC COMBH"]
[PlyCount "108"]
[EventDate "2022.09.29"]
[EventType "swiss"]
[EventCountry "OMN"]
[SourceTitle "playchess.com"]
[Source "ChessBase"]
[SourceQuality "1"]
[TimeControl "5400+30"]

{[%evp 8,108,0,-4,0,0,32767,0,0,-10,27,8,17,16,15,-51,11,-67,-70,-79,-62,-66,-64,-68,-59,-62,-41,-37,-28,-34,-8,-27,-15,-22,-14,-14,-13,-11,-10,-10,-12,-21,0,-39,0,-54,0,-56,-62,-64,-56,-96,-102,-599,-102,-106,32767,-119,-119,-1269,-5913,-6091,-2060,-1658,-1047,-1126,-669,-1225,-6397,-1388,-6207,-2439,-29952,-5189,-29970,-29962,-12837,-29973,-10500,-3036,-29976,32767,32767,32767,32767,32767,32767,-29979,-29980,-29972,-29981,-29982,-29983,-29982,-29985,-29984,-29985,-29983,-29986,-29988,-29989,-29989,-29990]} 1. d4 {[%emt 0:00:01]} Nf6 {[%emt 0:01:11]} 2. b3 {[%emt 0:00:41]} d5 {[%emt 0:01:23]} 3. Nf3 {[%emt 0:00:11]} Bf5 {[%emt 0:01:13]} 4. Nbd2 {[%emt 0:00:38]} h6 {[%emt 0:01:37]} 5. Bb2 {[%emt 0:00:25]} e6 {[%emt 0:00:17]} 6. a3 {[%emt 0:00:12]} Nbd7 {[%emt 0:00:28]} 7. e3 {[%emt 0:00:21]} Be7 {[%emt 0:01:12]} 8. Be2 {[%emt 0:01:20]} c5 {[%emt 0:01:00]} 9. O-O {[%emt 0:00:44]} Rc8 {[%emt 0:01:14]} 10. c4 {[%emt 0:00:17]} O-O {[%emt 0:04:01]} 11. Ne5 {[%emt 0:01:08]} (11. cxd5 $14 exd5 12. dxc5) 11... Ne4 {[%emt 0:08:03]} (11... dxc4 $15 12. Nxd7 Nxd7 13. bxc4 Qb6) 12. f3 {[%emt 0:04:46]} (12. Nxd7 $11 Qxd7 13. Nxe4 Bxe4 14. dxc5) 12... Nxd2 {[%emt 0:00:57]} 13. Qxd2 {[%emt 0:00:14]} Nxe5 {[%emt 0:10:23]} 14. dxe5 {[%emt 0:01:04]} dxc4 {[%emt 0:00:02]} 15. Qxd8 {[%emt 0:00:24]} Rfxd8 {[%emt 0:00:02]} 16. Bxc4 {[%emt 0:00:38]} Bd3 {[%emt 0:00:55]} (16... b5 $5 17. Bxb5 Bd3 $15) 17. Rfd1 {[%emt 0:00:47]} Bxc4 {[%emt 0:02:23]} 18. bxc4 {[%emt 0:00:12]} Kf8 {[%emt 0:02:09]} 19. Kf1 {[%emt 0:00:07]} Ke8 {[%emt 0:00:24]} 20. Ke2 {[%emt 0:00:05]} Rxd1 {[%emt 0:01:28]} 21. Rxd1 {[%emt 1:26:45]} Rd8 {[%emt 1:00:38]} 22. Rd3 {[%emt 0:00:00]} a6 {[%emt 0:00:00]} 23. a4 {[%emt 0:00:00]} Rxd3 {[%emt 0:00:00]} 24. Kxd3 {[%emt 0:00:00]} Kd7 {[%emt 0:00:00]} 25. g4 {[%emt 0:00:00]} (25. a5 $11) 25... Kc6 {[%emt 0:00:00]} 26. f4 {[%emt 0:00:00]} (26. a5 $11) 26... g6 {[%emt 0:00:00]} (26... b5 $15) 27. e4 {[%emt 0:00:00]} (27. a5 $11) 27... b5 {[%emt 0:00:00]} 28. axb5+ {[%emt 0:00:00]} axb5 {[%emt 0:00:00]} 29. f5 {[%emt 0:00:00]} (29. Bc1 $15) 29... Bg5 {[%emt 0:00:00]} 30. h3 $2 {[%emt 0:00:00]} (30. Bc3 $17 {is a better chance.}) 30... Kb6 $2 {[%emt 0:00:00]} (30... b4 $19 {has better winning chances.} 31. Kc2 Kb6) 31. Bc3 {[%emt 0:00:00]} h5 {[%emt 0:00:00]} 32. gxh5 {[%emt 0:00:00]} gxh5 {[%emt 0:00:00]} 33. Bb2 $2 {[%emt 0:00:00]} (33. Be1 $17) 33... b4 {[%emt 0:00:00]} 34. Kc2 {[%emt 0:00:00]} Kc6 {[%emt 0:00:00]} (34... Bf4 $142 35. Kb3 Ka5 36. f6 Bg5 37. Ba1 Be3 38. Bb2 Bf4 39. Ba1 Be3 40. Bb2 Bf4 41. Kc2 Ka4 42. Ba1 Bg5 43. Kd3 Bf4 44. Bb2 Kb3 45. Ba1 Ka2 46. Bc3 bxc3 47. Kxc3 Ka3 48. h4 Bxe5+ 49. Kc2 Kb4 50. Kd3 Kb3 51. Ke3 Kxc4 52. Ke2 Kb3 53. Kf2 c4 54. Ke2 c3 55. Ke3 c2 56. Kd2 Bd4 57. e5 Bg1 58. Kd3 c1=Q 59. Ke2 Qc2+ 60. Kf3 Qf2+ 61. Ke4 Qf5#) 35. Kd3 {[%emt 0:00:00]} Kd7 {[%emt 0:00:00]} 36. Ke2 {[%emt 0:00:00]} Ke7 {[%emt 0:00:00]} (36... Bh6 $142 37. Kd1 Kc6) 37. f6+ {[%emt 0:00:00]} Kd7 {[%emt 0:00:00]} 38. Kd3 {[%emt 0:00:00]} Kc6 {[%emt 0:00:00]} 39. Kc2 {[%emt 0:00:00]} Bf4 {[%emt 0:00:00]} 40. Kb3 {[%emt 0:00:00]} Be3 {[%emt 0:00:00]} 41. Ka4 {[%emt 0:00:00]} Kb6 {[%emt 0:00:00]} 42. Ba1 {[%emt 0:00:00]} Bd2 {[%emt 0:00:00]} (42... Bc1 $142 43. Kb3 Ka5 44. Kc2 Be3 45. Kd3 Bf4 46. Ke2 Ka4 47. Kf3 Bg5 48. Ke2 Bf4 49. Kf3 Bc1 50. Ke2 Kb3 51. Kf3 Ka2 52. Bd4 cxd4 53. c5 b3 54. c6 b2 55. c7 b1=Q 56. c8=Q Qd3+ 57. Kg2 Qe2+ 58. Kg3 {[#]} Bf4+ $1 {[%mdl 512]} 59. Kh4 Qf2+ 60. Kxh5 Qf3+ 61. Kh4 Qg3+ 62. Kh5 Qxh3#) 43. Kb3 {[%emt 0:00:00]} Ka5 {[%emt 0:00:00]} 44. Bb2 {[%emt 0:00:00]} h4 {[%emt 0:00:45]} 45. Kc2 {[%emt 0:00:00]} Bc3 {[%emt 0:00:20]} 46. Bxc3 {[%emt 0:00:00]} bxc3 {[%emt 0:00:02]} 47. Kb3 {[%emt 0:00:00]} c2 $1 {[%emt 0:00:39]} 48. Kxc2 {[%emt 0:00:00]} Kb4 {[%emt 0:00:18]} 49. Kd3 {[%emt 0:00:00]} Kb3 {[%emt 0:00:02]} 50. Ke3 {[%emt 0:00:00]} Kxc4 {[%emt 0:00:03]} 51. Kf4 {[%emt 0:00:00]} Kd4 {[%emt 0:00:12]} 52. Kg5 {[%emt 0:00:00]} Kxe5 {[%emt 0:01:57]} 53. Kxh4 {[%emt 0:00:00]} c4 {[%emt 0:00:18]} 54. Kg4 {[%emt 0:00:00]} c3 {[%emt 0:00:02]} 0-1

[Event "Asian Amateur-ch Open 2022"]
[Site "Muscat"]
[Date "2022.10.05"]
[Round "9.15"]
[White "Gabdushev, Arman"]
[Black "Al Balushi, Emad"]
[Result "0-1"]
[ECO "B84"]
[WhiteElo "1827"]
[BlackElo "1617"]
[Annotator "NA RC COMBH"]
[PlyCount "58"]
[EventDate "2022.09.29"]
[EventType "swiss"]
[EventCountry "OMN"]
[SourceTitle "playchess.com"]
[Source "ChessBase"]
[SourceQuality "1"]
[TimeControl "5400+30"]

{[%evp 19,47,-20,0,-21,0,0,34,0,13,14,14,-14,-7,-6,0,0,32767,32767,34,-73,-79,-35,-35,-62,10,0,0,-2,-4,0]} 1. e4 {[%emt 0:00:02]} c5 {[%emt 0:13:52]} 2. Nf3 {[%emt 0:00:10]} d6 {[%emt 0:01:16]} 3. d4 {[%emt 0:00:05]} cxd4 {[%emt 0:00:07]} 4. Nxd4 {[%emt 0:00:04]} Nf6 {[%emt 0:00:12]} 5. Nc3 {[%emt 0:00:07]} a6 {[%emt 0:00:17]} 6. Be2 {[%emt 0:00:56]} e6 {[%emt 0:00:34]} 7. Be3 {[%emt 0:00:15] is currently scoring better than 7.0-0.} Be7 {[%emt 0:00:15]} 8. Qd2 {[%emt 0:01:07]} b5 {[%emt 0:02:28]} 9. f3 {[%emt 0:00:39]} O-O {[%emt 0:00:48] [#]} 10. h4 $146 {[%emt 0:00:41]} (10. a3 {is more appropriate.}) ({Predecessor:} 10. O-O Qc7 11. g4 Rd8 12. g5 Nfd7 13. f4 Nc6 14. Nxc6 Qxc6 15. Bf3 Bb7 16. e5 {1-0 (69) Fuzishawa,R (2297)-McLeod,S (2311) LSS email 2017}) 10... Bb7 {[%emt 0:00:34]} 11. h5 {[%emt 0:00:32]} Nbd7 {[%emt 0:00:27]} 12. g4 $1 {[%emt 0:01:39]} Ne5 {[%emt 0:00:58]} 13. g5 {[%emt 0:01:13]} Nfd7 $1 {[%emt 0:01:33]} 14. O-O-O {[%emt 0:00:23]} Nb6 {[%emt 0:04:05]} 15. g6 {[%emt 0:01:25]} (15. b3 {is superior.}) 15... Nbc4 {[%emt 0:02:02]} 16. Bxc4 {[%emt 0:00:09]} Nxc4 {[%emt 0:00:07]} 17. Qd3 {[%emt 0:01:19]} Nxe3 {[%emt 0:06:23]} 18. Qxe3 {[%emt 0:00:06]} e5 {[%emt 0:03:25]} ({Black should try} 18... Bg5 $11 19. f4 Bh6) 19. gxh7+ {[%emt 0:01:02]} (19. h6 $11 gxh6 20. gxh7+ Kh8 21. Nde2 (21. Nf5 $2 Bg5 $19)) 19... Kxh7 {[%emt 0:05:56]} 20. Nde2 $1 {[%emt 0:00:08]} ({Don't go for} 20. Nf5 $2 Bg5 21. Rhg1 Bxe3+ $19) 20... Bg5 {[%emt 0:05:28]} 21. f4 {[%emt 0:00:46]} Bh6 {[%emt 0:09:36]} ({Better is} 21... exf4 $15 22. Nxf4 f5) 22. Kb1 {[%emt 0:00:53]} f5 {[%emt 0:03:45]} 23. Nd5 {[%emt 0:01:04]} Kh8 {[%emt 0:03:46]} (23... Qe8 $1 $15 {deserves consideration.} 24. Nc7 Qc8) 24. exf5 $11 {[%emt 0:04:17]} Rxf5 {[%emt 0:09:54]} 25. Qh3 {[%emt 0:02:29]} Bxd5 {[%emt 0:03:12]} 26. Rxd5 {[%emt 0:00:51]} Qf6 {[%emt 0:04:31]} 27. fxe5 {[%emt 0:01:16]} dxe5 {[%emt 0:01:00]} 28. Rhd1 {[%emt 0:00:29]} Rf8 {[%emt 0:02:20]} 29. Rd6 {[%emt 0:01:07]} Qxd6 {[%emt 0:00:24]} 0-1

[Event "Asian Amateur-ch Open 2022"]
[Site "Muscat"]
[Date "2022.10.05"]
[Round "9.16"]
[White "Khayat, Emad"]
[Black "Jaradat, Othman"]
[Result "1-0"]
[ECO "E05"]
[WhiteElo "1597"]
[BlackElo "1751"]
[Annotator "NA RC COMBH"]
[PlyCount "59"]
[EventDate "2022.09.29"]
[EventType "swiss"]
[EventCountry "OMN"]
[SourceTitle "playchess.com"]
[Source "ChessBase"]
[SourceQuality "1"]
[TimeControl "5400+30"]

1. d4 {[%emt 0:00:19]} e6 {[%emt 0:00:04]} 2. Nf3 {[%emt 0:00:05]} d5 {[%emt 0:00:09]} 3. g3 {[%emt 0:00:06]} Nf6 {[%emt 0:00:09]} 4. Bg2 {[%emt 0:00:04]} Be7 {[%emt 0:00:14]} 5. O-O {[%emt 0:00:08]} O-O {[%emt 0:00:34]} 6. c4 {[%emt 0:00:06]} dxc4 {[%emt 0:00:12]} 7. Ne5 {[%emt 0:00:35]} Nc6 {[%emt 0:00:24]} 8. Bxc6 {[%emt 0:02:17]} bxc6 {[%emt 0:00:02]} 9. Nxc6 {[%emt 0:00:07]} Qe8 {[%emt 0:00:03]} 10. Nxe7+ {[%emt 0:00:09]} Qxe7 {[%emt 0:00:02]} 11. Qa4 {[%emt 0:00:10]} Qd6 {[%emt 0:12:16]} 12. Rd1 {[%emt 0:06:54]} Rd8 {[%emt 0:13:20]} 13. Nc3 {[%emt 0:02:34]} Nd5 {[%emt 0:12:21]} 14. Ne4 {[%emt 0:11:02]} Qb4 {[%emt 0:11:10]} 15. Qxb4 {[%emt 0:06:05]} Nxb4 {[%emt 0:00:03]} 16. Bf4 {[%emt 0:00:19]} Nc2 {[%emt 0:13:47]} 17. Rac1 {[%emt 0:21:26]} Nxd4 {[%emt 0:07:30]} 18. Kf1 {[%emt 0:09:38]} Rd5 {[%emt 0:11:24]} 19. Rxc4 {[%emt 0:10:25]} Nf5 {[%emt 0:06:52]} 20. Rdc1 {[%emt 0:04:44]} e5 {[%emt 0:01:46]} 21. Rxc7 {[%emt 0:04:00]} Be6 {[%emt 0:00:38]} 22. Nc3 {[%emt 0:01:07]} Ra5 {[%emt 0:01:35]} 23. b4 {[%emt 0:00:15]} Ra6 {[%emt 0:03:53]} 24. Bxe5 {[%emt 0:00:07]} f6 {[%emt 0:00:23]} 25. Bf4 {[%emt 0:00:43]} Bxa2 {[%emt 0:01:23]} 26. b5 {[%emt 0:00:40]} Ra3 {[%emt 0:00:30]} 27. Ra1 {[%emt 0:00:38]} Rxc3 {[%emt 0:01:08]} 28. Rxc3 {[%emt 0:00:06]} Bd5 {[%emt 0:00:51]} 29. Rc5 {[%emt 0:00:54]} Be6 {[%emt 0:00:18]} 30. b6 {[%emt 0:00:11]} 1-0

[Event "Asian Amateur-ch Open 2022"]
[Site "Muscat"]
[Date "2022.10.05"]
[Round "9.17"]
[White "Krishanu Sai"]
[Black "Reyes, Danilo G."]
[Result "1-0"]
[ECO "B07"]
[WhiteElo "1748"]
[BlackElo "1584"]
[Annotator "NA RC COMBH"]
[PlyCount "129"]
[EventDate "2022.09.29"]
[EventType "swiss"]
[EventCountry "OMN"]
[SourceTitle "playchess.com"]
[Source "ChessBase"]
[SourceQuality "1"]
[TimeControl "5400+30"]

1. e4 {[%emt 0:00:12]} d6 {[%emt 0:00:06]} 2. d4 {[%emt 0:00:05]} Nf6 {[%emt 0:00:05]} 3. Nc3 {[%emt 0:00:07]} g6 {[%emt 0:00:04]} 4. Be3 {[%emt 0:00:39]} c6 {[%emt 0:00:05]} 5. f3 {[%emt 0:09:09]} b5 {[%emt 0:00:07]} 6. a3 {[%emt 0:01:37]} Bb7 {[%emt 0:01:25]} 7. h4 {[%emt 0:06:19]} Nbd7 {[%emt 0:01:11]} 8. Nge2 {[%emt 0:07:35]} h5 {[%emt 0:00:52]} 9. Qd2 {[%emt 0:03:19]} a6 {[%emt 0:02:18]} 10. Rd1 {[%emt 0:06:55]} Qc7 {[%emt 0:00:51]} 11. Kf2 {[%emt 0:05:59]} Bg7 {[%emt 0:00:27]} 12. g3 {[%emt 0:01:05]} c5 {[%emt 0:06:18]} 13. dxc5 {[%emt 0:04:53]} Nxc5 {[%emt 0:00:36]} 14. Bg2 {[%emt 0:09:31]} Rc8 {[%emt 0:05:07]} 15. Nf4 {[%emt 0:03:17]} Ncd7 {[%emt 0:02:21]} 16. Bh3 {[%emt 0:06:00]} O-O {[%emt 0:18:37]} 17. Nfd5 {[%emt 0:07:36]} Bxd5 {[%emt 0:00:50]} 18. exd5 {[%emt 0:00:18]} Rb8 {[%emt 0:03:29]} 19. Ra1 {[%emt 0:12:23]} Ne5 {[%emt 0:03:42]} 20. b3 {[%emt 0:01:31]} Neg4+ {[%emt 0:14:26]} 21. fxg4 {[%emt 0:02:06]} Nxg4+ {[%emt 0:00:15]} 22. Bxg4 {[%emt 0:00:17]} Bxc3 {[%emt 0:00:09]} 23. Qd3 {[%emt 0:01:48]} hxg4 {[%emt 0:00:31]} 24. Ra2 {[%emt 0:00:29]} Be5 {[%emt 0:04:25]} 25. h5 {[%emt 0:06:06]} Qc3 {[%emt 0:00:29]} 26. Qxc3 {[%emt 0:02:00]} Bxc3 {[%emt 0:00:10]} 27. Rh4 {[%emt 0:01:02]} f5 {[%emt 0:11:56]} 28. hxg6 {[%emt 0:00:24]} Rf6 {[%emt 0:03:11]} 29. Rh7 {[%emt 0:00:37]} Re8 {[%emt 0:00:57]} 30. Bg5 {[%emt 0:00:14]} Rxg6 {[%emt 0:01:05]} 31. Rxe7 {[%emt 0:00:04]} Rxe7 {[%emt 0:00:49]} 32. Bxe7 {[%emt 0:00:05]} Kf7 {[%emt 0:01:05]} 33. Bh4 {[%emt 0:00:51]} Rh6 {[%emt 0:00:43]} 34. Ke3 {[%emt 0:00:27]} Rxh4 {[%emt 0:02:26]} 35. gxh4 {[%emt 0:00:12]} g3 {[%emt 0:00:09]} 36. Kf3 {[%emt 0:00:35]} f4 {[%emt 0:00:20]} 37. b4 {[%emt 0:00:15]} Kg6 {[%emt 0:00:15]} 38. a4 {[%emt 0:00:15]} Kh5 {[%emt 0:03:30]} 39. axb5 {[%emt 0:00:26]} axb5 {[%emt 0:00:33]} 40. Ra7 {[%emt 0:01:19]} Kxh4 {[%emt 0:00:21]} 41. Kxf4 {[%emt 0:00:58]} Be5+ {[%emt 0:00:33]} 42. Kf3 {[%emt 0:00:11]} Bc3 {[%emt 0:01:01]} 43. Rb7 {[%emt 0:00:39]} Bxb4 {[%emt 0:02:04]} 44. Rxb5 {[%emt 0:00:24]} Bc3 {[%emt 0:00:26]} 45. Rb7 {[%emt 0:00:31]} Kg5 {[%emt 0:05:14]} 46. Kxg3 {[%emt 0:00:42]} Kf5 {[%emt 0:00:08]} 47. Re7 {[%emt 0:00:25]} Bf6 {[%emt 0:01:08]} 48. Re6 {[%emt 0:00:20]} Be5+ {[%emt 0:00:11]} 49. Kf3 {[%emt 0:00:10]} Bh2 {[%emt 0:00:10]} 50. c4 {[%emt 0:00:09]} Be5 {[%emt 0:01:40]} 51. Ke3 {[%emt 0:00:13]} Bf4+ {[%emt 0:00:33]} 52. Kd3 {[%emt 0:00:08]} Be5 {[%emt 0:00:11]} 53. Re8 {[%emt 0:00:37]} Kf6 {[%emt 0:00:24]} 54. Ke4 {[%emt 0:00:12]} Bh2 {[%emt 0:00:10]} 55. Re6+ {[%emt 0:00:11]} Kf7 {[%emt 0:00:08]} 56. Kf5 {[%emt 0:00:26]} Bg3 {[%emt 0:00:03]} 57. Rf6+ {[%emt 0:00:26]} Ke7 {[%emt 0:00:02]} 58. Rh6 {[%emt 0:00:09]} Kd7 {[%emt 0:01:00]} 59. Rh7+ {[%emt 0:00:09]} Kd8 {[%emt 0:00:25]} 60. Ke6 {[%emt 0:00:17]} Kc8 {[%emt 0:00:22]} 61. Rd7 {[%emt 0:00:09]} Bh2 {[%emt 0:01:47]} 62. Rxd6 {[%emt 0:00:19]} Kc7 {[%emt 0:00:06]} 63. Rc6+ {[%emt 0:00:27]} Kb7 {[%emt 0:00:09]} 64. Kd7 {[%emt 0:00:13]} Bg3 {[%emt 0:00:08]} 65. c5 {[%emt 0:00:41]} 1-0

[Event "Asian Amateur-ch Open 2022"]
[Site "Muscat"]
[Date "2022.10.05"]
[Round "9.18"]
[White "Al Zaabi, Faras"]
[Black "Ibnu, Iwan Schani"]
[Result "1/2-1/2"]
[ECO "C54"]
[WhiteElo "1514"]
[BlackElo "1689"]
[Annotator "NA RC COMBH"]
[PlyCount "54"]
[EventDate "2022.09.29"]
[EventType "swiss"]
[EventCountry "OMN"]
[SourceTitle "playchess.com"]
[Source "ChessBase"]
[SourceQuality "1"]
[TimeControl "5400+30"]

1. e4 {[%emt 0:04:40]} e5 {[%emt 0:00:56]} 2. Nf3 {[%emt 0:00:09]} Nc6 {[%emt 0:00:06]} 3. Bc4 {[%emt 0:00:09]} Bc5 {[%emt 0:00:03]} 4. c3 {[%emt 0:00:14]} Nf6 {[%emt 0:00:02]} 5. d3 {[%emt 0:00:38]} O-O {[%emt 0:00:22]} 6. O-O {[%emt 0:00:12]} d6 {[%emt 0:00:15]} 7. h3 {[%emt 0:02:13]} h6 {[%emt 0:00:05]} 8. Re1 {[%emt 0:00:26]} a5 {[%emt 0:01:36]} 9. d4 {[%emt 0:04:45]} Bb6 {[%emt 0:00:30]} 10. Bb3 {[%emt 0:01:31]} Qe7 {[%emt 0:05:17]} 11. Bc2 {[%emt 0:06:32]} Nh5 {[%emt 0:09:21]} 12. Nxe5 {[%emt 0:09:37]} dxe5 {[%emt 0:00:45]} 13. Qxh5 {[%emt 0:08:26]} exd4 {[%emt 0:00:55]} 14. e5 {[%emt 0:04:12]} f5 {[%emt 0:07:11]} 15. Bf4 {[%emt 0:07:03]} Be6 {[%emt 0:00:44]} 16. Bxh6 {[%emt 0:04:17]} dxc3 {[%emt 0:16:08]} 17. Nxc3 {[%emt 0:03:01]} Nd4 {[%emt 0:00:08]} 18. Bg5 {[%emt 0:01:13]} Qb4 {[%emt 0:04:13]} 19. Bd3 {[%emt 0:12:39]} a4 {[%emt 0:11:19]} 20. Ne2 {[%emt 0:05:43]} Qxb2 {[%emt 0:10:18]} 21. Nf4 {[%emt 0:08:24]} Bf7 {[%emt 0:01:19]} 22. Ng6 {[%emt 0:04:48]} Nf3+ {[%emt 0:02:17]} 23. Qxf3 {[%emt 0:03:19]} Bxg6 {[%emt 0:00:07]} 24. Bc4+ {[%emt 0:01:08]} Kh7 {[%emt 0:00:49]} 25. Rad1 {[%emt 0:02:10]} Ra5 {[%emt 0:02:25]} 26. Qf4 {[%emt 0:01:15]} Bh5 {[%emt 0:03:18]} 27. Rd7 {[%emt 0:01:07]} Qc3 {[%emt 0:23:31]} 1/2-1/2